Cogmind - Beta 9.6 *** ADVENTURER MODE // 2020.08.27 @ 17:17:16 Player: Tango Result: Destroyed by as-19445 with Assembled Blade Performance ------------- Evolutions (0) 0 Regions Visited (0) 0 Robots Destroyed (12) 60 Value Destroyed (51) 51 Prototype IDs (0) 0 Alien Tech Used (0) 0 Bonus (0) 0 TOTAL SCORE: 111 Bonus ------- None Cogmind --------- Core Integrity 0/250 Matter 290/300 Energy 125/125 System Corruption 13% Temperature Cool (20) Movement Core (50) Location -11/Scrapyard Parts ------- > --- POWER (1) -------- Light Ion Engine > --- PROPULSION (2) --- (None) > --- UTILITY (2) ------ Seismic Analyzer > --- WEAPON (2) ------- (None) > --- INVENTORY (4) ---- Small Storage Unit Peak State ------------ > --- POWER ------------ Light Ion Engine > --- PROPULSION ------- Light Treads Light Treads > --- UTILITY ---------- Improved Terrain Scanner Seismic Analyzer > --- WEAPON ----------- Light Assault Rifle Light Assault Rifle > --- INVENTORY -------- Small Storage Unit [Rating: 8] Favorites ----------- Power Light Ion Engine Engine Light Ion Engine Propulsion Light Treads Treads Light Treads Utility Seismic Analyzer Device Improved Terrain Scanner Storage Small Storage Unit Processor Seismic Analyzer Weapon Light Assault Rifle Ballistic Gun Light Assault Rifle Special Weapon Mining Laser Build | -11 ------- Run | Scr Slots Evolved . | . Power . | . Propulsion . | . Utility . | . Weapon . | . Parts Attached 12 | 12 Power 1 | 1 Engine 1 | 1 Core . | . Reactor . | . Propulsion 2 | 2 Treads 2 | 2 Leg . | . Wheel . | . Hover . | . Flight . | . Utility 4 | 4 Device 2 | 2 Storage 1 | 1 Processor 1 | 1 Hackware . | . Protection . | . Artifact . | . Weapon 5 | 5 Energy Gun . | . Energy Cannon . | . Ballistic Gun 4 | 4 Ballistic Cannon . | . Launcher . | . Special Weapon 1 | 1 Impact Weapon . | . Slashing Weapon . | . Piercing Weapon . | . Special Melee Weapon . | . Unidentified Prototypes . | . Parts Lost 7 | 7 Power . | . Propulsion 2 | 2 Utility 2 | 2 Weapon 3 | 3 Highest Loss Streak 5 | 5 Average Slot Usage (%) . | . Naked Turns . | . Heaviest Build 9 | 9 Greatest Support 40 | 40 Greatest Overweight (x) . | . Average Overweight (x) . | . Largest Inventory Capacity 6 | 6 Average Capacity 4 | 4 Most Carried 3 | 3 Average Carried 1 | 1 Final Capacity 4 | 4 Final Carried 1 | 1 Class Distribution -------------------- None Dominant Class ---------------- None Resources | -11 ----------- Run | Scr Matter Collected 336 | 336 Remotely . | . Salvage Created 228 | 228 Parts 25 | 25 Haulers Intercepted . | . Recyclers Shooed 1 | 1 Parts Field Recycled . | . Retrieved Matter . | . Parts Self-Destructed . | . Prevented . | . Kills | -11 ------- Run | Scr Combat Hostiles Destroyed 2 | 2 Melee 2 | 2 Classes Destroyed 4 | 4 Worker 3 | 3 Tunneler 6 | 6 Recycler 1 | 1 Assembled 2 | 2 Best Kill Streak 3 | 3 Combat Bots Only 2 | 2 Max Kills in Single Turn 2 | 2 Gunslinging . | . Exploded . | . Melee 1 | 1 Uniques/NPCs Destroyed . | . Combat | -11 -------- Run | Scr Damage Taken 889 | 889 Core 253 | 253 Absorbed by Shields . | . Core Remaining (%) . | . Volleys Fired 46 | 46 Largest 2 | 2 Hottest 100 | 100 Shots Fired 66 | 66 Gun 46 | 46 Cannon . | . Launcher . | . Special 20 | 20 Kinetic 46 | 46 Thermal 20 | 20 Explosive . | . Electromagnetic . | . Robot Hit Streak 25 | 25 Robot Miss Streak 1 | 1 Penetration Max . | . Secondary Targets . | . Shots Hit Robots 39 | 39 Core Hits 17 | 17 Critical Hits 2 | 2 Critical Kills 1 | 1 Critical Parts Destroyed . | . Melee Attacks . | . Impact . | . Slashing . | . Piercing . | . Sneak Attacks . | . Combat Hostiles . | . Follow-up Attacks . | . Damage Inflicted 331 | 331 Guns 315 | 315 Cannons . | . Explosions . | . Melee . | . Ramming 16 | 16 Kinetic 315 | 315 Thermal . | . Explosive . | . Electromagnetic . | . Impact . | . Slashing . | . Piercing . | . Highest Corruption 13 | 13 Average Corruption 8 | 8 Corruption Purged . | . Effects 35 | 35 Message Errors 11 | 11 Matter Fused 8 | 8 Heat Flow Errors 4 | 4 Energy Discharges 2 | 2 Data Loss (minor) 3 | 3 Data Loss (major) 5 | 5 Misfires 1 | 1 Misdirections 1 | 1 Overload Shots . | . Overflow Damage . | . Projectiles . | . Explosions . | . Melee . | . Knockbacks 2 | 2 Impact 2 | 2 Kinetic . | . Secondary . | . Self-Inflicted Damage . | . Shots . | . Rammed 11 | 11 Targets Rammed 15 | 15 Kicked . | . Crushed 4 | 4 Highest Temperature 243 | 243 Average Temperature 35 | 35 Received Heat Transfer 140 | 140 Siege Activations . | . Robots Corrupted . | . Combat Hostiles . | . Parts Fried . | . Impact Corruptions . | . Robots Melted . | . Combat Hostiles . | . Parts Melted . | . Heat Transferred . | . Parts Sabotaged . | . Parts Stolen . | . Parts Stripped . | . Power Chain Reactions . | . Missiles Intercepted . | . Alert | -11 ------- Run | Scr Peak Influence 30 | 30 Average Influence 7 | 7 Maximum Alert Level . | . Low Security (%) 100 | 100 Level 1 . | . Level 2 . | . Level 3 . | . Level 4 . | . Level 5 . | . High Security . | . Max Security . | . Squads Dispatched . | . Investigation . | . Extermination . | . Reinforcement . | . Assault . | . Garrison . | . Intercept . | . Construction Impeded . | . Haulers Reinforced . | . Stealth | -11 --------- Run | Scr Distress Signals . | . Communications Jammed . | . Distress Signals . | . Times Spotted 20 | 20 Peak Tracking Total 20 | 20 Tactical Retreats . | . Traps | -11 ------- Run | Scr Traps Triggered . | . Indirectly . | . Trap Hack Attempts . | . Triggered . | . Disarmed . | . Reprogrammed . | . Reused . | . Traps Extracted . | . Installed . | . Triggered . | . Machines | -11 ---------- Run | Scr Machines Disabled . | . Max in Single Turn . | . Machines Sabotaged . | . Garrisons Compromised . | . Overloaded Fab Kills . | . Fab Network Shutdowns . | . Hacking | -11 --------- Run | Scr Machines Accessed . | . Terminals . | . Fabricators . | . Repair Stations . | . Recycling Units . | . Scanalyzers . | . Garrison Access . | . Total Hacks . | . Successful . | . Failed . | . Catastrophic . | . Database Lockouts . | . Manual . | . Terminals . | . Fabricators . | . Repair Stations . | . Recycling Units . | . Scanalyzers . | . Garrison Access . | . Terminal Hacks . | . Fabricator Hacks . | . Repair Station Hacks . | . Recycling Unit Hacks . | . Scanalyzer . | . Garrison Access Hacks . | . Unauthorized Hacks . | . Terminals . | . Fabricators . | . Repair Stations . | . Recycling Units . | . Scanalyzers . | . Garrison Access . | . Data Cores Recovered . | . Used . | . Hacking Detections . | . Full Trace Events . | . Feedback Events . | . Feedback Blocked . | . Robot Schematics Acquired . | . Robots Built . | . Matter . | . Time . | . Total Robot Build Rating . | . Part Schematics Acquired . | . Parts Built . | . Matter . | . Time . | . Total Part Build Rating . | . Parts Repaired . | . Time . | . Parts Recycled . | . Recycled Matter . | . Retrieved Matter . | . Retrieved Components . | . Parts Scanalyzed . | . Part Schematics Acquired . | . Parts Damaged . | . Bothacking | -11 ------------ Run | Scr Used RIF Installer . | . Robots Hacked . | . Non-combat . | . Combat . | . Robot Hacks Applied . | . Relay Couplers Released . | . Robots Rewired . | . Allies Hacked . | . Hacks Repelled . | . Allies | -11 -------- Run | Scr Total Allies . | . Largest Group . | . Highest-Rated Group . | . Highest-Rated Ally . | . Total Orders . | . Ally Attacks . | . Total Damage . | . Kills . | . Allies Corrupted . | . Allies Melted . | . Intel | -11 ------- Run | Scr Robot Analysis Total . | . Derelict Logs Recovered . | . Drone Launches . | . Drone Recoveries . | . Exploration | -11 ------------- Run | Scr Turns Passed 1281 | 1281 Spaces Moved 404 | 404 Core 7 | 7 Treads 397 | 397 Legs . | . Wheels . | . Hover . | . Flight . | . Fastest Speed 50 | 50 Average Speed 158 | 158 Slowest Speed 160 | 160 Overloaded Moves . | . Propulsion Burnouts . | . Robots Hopped . | . Cave-ins Triggered 1 | 1 Exploration Rate (%) 28 | 28 Regions Visited . Branch Regions . Pre-discovered Areas . | . Known Exits Taken . | . Unknown Exits Taken . | . Scrap Searched . | . Spaces Dug 6 | 6 Terrain Destroyed 6 | 6 Melee . | . Projectile 6 | 6 AOE . | . Actions | -11 --------- Run | Scr Total 941 | 941 Wait 453 | 453 Move 404 | 404 Hop . | . Pick Up 10 | 10 Fast Attach . | . Attach 10 | 10 Detach 1 | 1 Swap 2 | 2 Drop . | . Fire 46 | 46 Melee . | . Ram . | . Kick . | . Crush 15 | 15 Escape Stasis . | . Rewire . | . Trap . | . Miscellaneous . | . Route ------- -11/Scrapyard (discovered 1 exit: [*Mat]) History --------- Turn | Location | Event 34 | -11/Scrapyard | Discovered new exit (range 15) 280 | -11/Scrapyard | Crushed by falling debris 1265 | -11/Scrapyard | Assembled infested the area 1274 | -11/Scrapyard | System corruption reached 10% 1280 | -11/Scrapyard | Core integrity fell below 50% 1282 | -11/Scrapyard | Core integrity fell below 20% 1282 | -11/Scrapyard | Destroyed by as-19445 with Assembled Blade Last Messages --------------- 01266_ T-07 Excavator system corrupted by crushing effect. 01266_ as-10225 sneak attacks. 01266_ T-07 Excavator destroyed. 01268_ Slammed into as-03398. 01271_ Slammed into as-68426. 01273_ Imp. Terrain Scanner destroyed. 01273_ System corrupted by crushing effect (+4). 01273_ Slammed into as-19445. 01275_ Slammed into as-23362. 01275_ Lgt. Assault Rifle destroyed. 01275_ System corrupted by crushing effect (+1). 01276_ Acquired 12 matter. 01276_ Lgt. Treads destroyed. 01276_ Slammed into as-01630. 01278_ Lgt. Assault Rifle destroyed. 01279_ Crushed as-94886. 01279_ as-94886 destroyed. 01281_ Crushed as-55589. 01281_ as-55589 destroyed. 01281_ Lgt. Treads destroyed. Map ----- +----------------------------------------------------+ | | | | | | | | | | | | | | | | | | | | | | | | | ?????????????????????????????????????????????????? | | ????????????????????????????#????????????????????? | | ??????????????????????#?###??#??#????????????????? | | ???????????????????????#?#???###?#???????????????? | | ???????????????????#????##?##?#??#?#?????????????? | | ??????????????????##?####??##?##??#?#????????????? | | ???????????????????### "## ####?###?????????????? | | ???????????????#??#?# " #####?##????????????? | | ??????????????###?### " #??????#?##?????????? | | ???????????????###?## " #??##?#?####????????? | | ?????????????#?#####?# a" ###?????#?#?????????? | | ????????????###????#?# "aa ###???##????#???????? | | ???????????#??##??##?# aaaa ?#####????##?????????? | | ??????????##?????####??#a@#?#?##??#??##??????????? | | ????????????##??##?##??#aa#########??#??#????????? | | ???????????#?#???#???## aa# ##????#????????? | | ??????????####?#?#?#??##aa# #????##????????? | | ??????????#??#???###?#?#aa ##??##?????????? | | ??????????##?##?#??#####aa#########?#####??#?????? | | ????????????###????##### ###?##?#????????? | | ??????????#??#?#?#??##?# ##?##?###???????? | | ?????????????###?#?##### ##### ##?#?#???#???????? | | ??????????#??##????##### #? ??? ?? ##?#??????? | | ??????????#??##?##?##### #?? ? ???#????????? | | ??????????##??####??#?## # ???? ? ? ??#????????? | | ?????????????##?#???#?## # ? ?? ? #?????????? | | ??????????????????###??# # ? #?##?##??????????? | | ?????????#?????#?### # ##########?????????????? | | ???????????????#?## # # #?#####?????????? | | ??????????????#??## # # ###?#???????????? | | ??????????#???#???# # # #??##???????????? | | ???????????#????#?# ##??????????????? | | ?????????????#?#### # # #???????????????? | | ?????????#?#??????# # # ####???????????????? | | ????????????#???#?# ?# #?#####???#??#?????????? | | ?????????????????## ?# #??#???????????????????? | | ????????????##?##?###??# #?#????##?#????????????? | | ?????????????????####??# #??#??#????????????????? | +----------------------------------------------------+ Best States ------------- Heat Dissipation 25 Energy Generation 10 Energy Capacity 125 Matter Stores 300 Matter Capacity 300 Sight Range 16 Terrain Scan Range 16 Terrain Scan Density 60 Resistance: KI 20 Resistance: TH 20 Resistance: EX 20 Resistance: EM 20 Resistance: I 20 Resistance: S 20 Resistance: P 20 Evasion (%) 50 Recoil Reduction 2 Offensive Hacking 10 Item Schematics ----------------- None Robot Schematics ------------------ None Fabricated ------------ Nothing Alien Tech Used ----------------- None Achievements -------------- None Challenges ------------ None Game ------ Seed AccelerationSmallMatter Manual? 0 Play Time 00:13:28 Cumulative 11.4 hours Start 2020.08.27 @ 17:09:39 End 2020.08.27 @ 17:17:16 Sessions 0 Manual Loads 0 Difficulty Adventurer Special Mode None Game No. 28 Rogue 21 Adventurer 7 Explorer 0 Win Type - Total 0 Types 0/0/0/0/0/0/0 Lore% 13 Gallery% 21 Achievement% 17 Wizard Run 0 Options --------- ASCII 0 Keyboard 0 Movement Arrows Keybinds 0 Fullscreen 1 Font 18/SmallcapsGlow Map View 76x50 Tactical HUD 1 Map Filters NONE Filters NONE Steam 1 RUN: af0a6469-be54-4a2c-a612-2e3ddc9698d3